[Event "Early-Titled-Tuesday-Blitz-April-16-2024"]
[Site "Chess.com"]
[Date "2024.04.16"]
[Round "6"]
[White "MITerryble"]
[Black "Rosh1610"]
[Result "1-0"]
[WhiteElo "3049"]
[BlackElo "2457"]
[TimeControl "180+1"]
[EndTime "9:09:35 PDT"]
[Termination "MITerryble won by checkmate"]

1. e4 {[%clk 0:03:00.9]} 1... e5 {[%clk 0:02:50.1]} 2. Nf3 {[%clk 0:03:01]} 2...
Nc6 {[%clk 0:02:50.5]} 3. c3 {[%clk 0:03:01.3]} 3... Nf6 {[%clk 0:02:49.7]} 4.
d4 {[%clk 0:03:01.6]} 4... d5 {[%clk 0:02:49.9]} 5. Bb5 {[%clk 0:03:01.2]} 5...
Nxe4 {[%clk 0:02:46.5]} 6. Nxe5 {[%clk 0:03:01.3]} 6... Bd7 {[%clk 0:02:46.7]}
7. Nxd7 {[%clk 0:02:46.6]} 7... Qxd7 {[%clk 0:02:46.1]} 8. O-O {[%clk
0:02:47.2]} 8... Be7 {[%clk 0:02:45.7]} 9. Nd2 {[%clk 0:02:47.2]} 9... Nd6
{[%clk 0:02:44.1]} 10. Bd3 {[%clk 0:02:45.3]} 10... O-O {[%clk 0:02:41.1]} 11.
Qh5 {[%clk 0:02:45.4]} 11... f5 {[%clk 0:02:36.4]} 12. Re1 {[%clk 0:02:45.9]}
12... Ne4 {[%clk 0:02:35.4]} 13. Nf1 {[%clk 0:02:38.8]} 13... g6 {[%clk
0:02:34.5]} 14. Qh6 {[%clk 0:02:36.9]} 14... Bf6 {[%clk 0:02:34.2]} 15. f3
{[%clk 0:02:35.9]} 15... Nd6 {[%clk 0:02:23.9]} 16. Qh3 {[%clk 0:02:25.6]} 16...
Rae8 {[%clk 0:02:23]} 17. Bf4 {[%clk 0:02:21.2]} 17... Rxe1 {[%clk 0:02:08.1]}
18. Rxe1 {[%clk 0:02:20.4]} 18... Re8 {[%clk 0:02:08.7]} 19. Rd1 {[%clk
0:02:19]} 19... Nd8 {[%clk 0:01:58.4]} 20. Ne3 {[%clk 0:02:07.6]} 20... c6
{[%clk 0:01:43]} 21. Qg3 {[%clk 0:01:58.5]} 21... N8f7 {[%clk 0:01:43.3]} 22.
Qf2 {[%clk 0:01:33]} 22... Bg5 {[%clk 0:01:34.9]} 23. Bxg5 {[%clk 0:01:27.6]}
23... Nxg5 {[%clk 0:01:35.8]} 24. Nc2 {[%clk 0:01:14.2]} 24... Ngf7 {[%clk
0:01:34.2]} 25. Bf1 {[%clk 0:01:12.9]} 25... a5 {[%clk 0:01:27.7]} 26. Ne1
{[%clk 0:01:12.7]} 26... b6 {[%clk 0:01:21.3]} 27. Nd3 {[%clk 0:01:12.9]} 27...
Re7 {[%clk 0:01:16]} 28. Ne5 {[%clk 0:01:09]} 28... Qe8 {[%clk 0:01:01.6]} 29.
h4 {[%clk 0:00:58.2]} 29... Nc8 {[%clk 0:00:53]} 30. Nd3 {[%clk 0:00:51.1]}
30... Ncd6 {[%clk 0:00:51.5]} 31. Nf4 {[%clk 0:00:51.2]} 31... Kg7 {[%clk
0:00:49.6]} 32. Qg3 {[%clk 0:00:50.7]} 32... Kh8 {[%clk 0:00:45.9]} 33. b3
{[%clk 0:00:46.2]} 33... a4 {[%clk 0:00:32.6]} 34. c4 {[%clk 0:00:45.7]} 34...
axb3 {[%clk 0:00:32.6]} 35. axb3 {[%clk 0:00:46.6]} 35... dxc4 {[%clk
0:00:30.2]} 36. bxc4 {[%clk 0:00:47.5]} 36... c5 {[%clk 0:00:25.8]} 37. Nd5
{[%clk 0:00:44.8]} 37... Rb7 {[%clk 0:00:18]} 38. Nxb6 {[%clk 0:00:45.3]} 38...
Rxb6 {[%clk 0:00:10.3]} 39. dxc5 {[%clk 0:00:45.8]} 39... Qe3+ {[%clk
0:00:10.7]} 40. Qf2 {[%clk 0:00:46.3]} 40... Qxf2+ {[%clk 0:00:09.8]} 41. Kxf2
{[%clk 0:00:47.2]} 41... Rb2+ {[%clk 0:00:10.1]} 42. Kg3 {[%clk 0:00:47.9]}
42... Ne8 {[%clk 0:00:08.7]} 43. Rd7 {[%clk 0:00:36.7]} 43... Kg7 {[%clk
0:00:07.3]} 44. c6 {[%clk 0:00:37.3]} 44... Rb6 {[%clk 0:00:06.7]} 45. c5 {[%clk
0:00:37]} 45... Rxc6 {[%clk 0:00:06.6]} 46. Bc4 {[%clk 0:00:37.6]} 46... Rf6
{[%clk 0:00:04.5]} 47. c6 {[%clk 0:00:37.5]} 47... Kf8 {[%clk 0:00:04]} 48. c7
{[%clk 0:00:37.9]} 48... Nxc7 {[%clk 0:00:03.9]} 49. Rxc7 {[%clk 0:00:38.8]}
49... Ne5 {[%clk 0:00:03.8]} 50. Bd5 {[%clk 0:00:37.3]} 50... f4+ {[%clk
0:00:03.5]} 51. Kf2 {[%clk 0:00:37.4]} 51... h5 {[%clk 0:00:04]} 52. Be4 {[%clk
0:00:37.7]} 52... Nf7 {[%clk 0:00:03.6]} 53. Ke2 {[%clk 0:00:36.7]} 53... Kg7
{[%clk 0:00:04]} 54. Kd3 {[%clk 0:00:36.1]} 54... Kh6 {[%clk 0:00:03.1]} 55. Kd4
{[%clk 0:00:34.9]} 55... Nd6 {[%clk 0:00:03.3]} 56. Bd3 {[%clk 0:00:34]} 56...
Nf5+ {[%clk 0:00:03.7]} 57. Ke5 {[%clk 0:00:33.3]} 57... Rf8 {[%clk 0:00:03.8]}
58. Kxf4 {[%clk 0:00:21.7]} 58... Nxh4+ {[%clk 0:00:03.7]} 59. Kg3 {[%clk
0:00:22.6]} 59... Nf5+ {[%clk 0:00:04.1]} 60. Kh3 {[%clk 0:00:23.3]} 60... Kg5
{[%clk 0:00:04.4]} 61. Rc5 {[%clk 0:00:23.3]} 61... Kf6 {[%clk 0:00:04.5]} 62.
Rc6+ {[%clk 0:00:23.6]} 62... Kg7 {[%clk 0:00:04.7]} 63. Be4 {[%clk 0:00:24.2]}
63... Kh6 {[%clk 0:00:04.6]} 64. Re6 {[%clk 0:00:23.2]} 64... Kg7 {[%clk
0:00:04.4]} 65. g4 {[%clk 0:00:22.8]} 65... hxg4+ {[%clk 0:00:05]} 66. fxg4
{[%clk 0:00:23.7]} 66... Rh8+ {[%clk 0:00:05.6]} 67. Kg2 {[%clk 0:00:23.4]}
67... Nh4+ {[%clk 0:00:06.2]} 68. Kg3 {[%clk 0:00:23.9]} 68... g5 {[%clk
0:00:06.7]} 69. Ra6 {[%clk 0:00:23.8]} 69... Rf8 {[%clk 0:00:06.5]} 70. Bd5
{[%clk 0:00:23.1]} 70... Rd8 {[%clk 0:00:05.9]} 71. Ra7+ {[%clk 0:00:23.5]}
71... Kh6 {[%clk 0:00:05.8]} 72. Be4 {[%clk 0:00:24.1]} 72... Re8 {[%clk
0:00:05.6]} 73. Rh7# {[%clk 0:00:24]} 1-0

[Event "Early-Titled-Tuesday-Blitz-April-16-2024"]
[Site "Chess.com"]
[Date "2024.04.16"]
[Round "6"]
[White "littlepinkyboy"]
[Black "Artemiki"]
[Result "0-1"]
[WhiteElo "2660"]
[BlackElo "2440"]
[TimeControl "180+1"]
[EndTime "9:09:36 PDT"]
[Termination "Artemiki won by checkmate"]

1. e4 {[%clk 0:03:00.9]} 1... e5 {[%clk 0:02:53.6]} 2. Nf3 {[%clk 0:03:00.7]}
2... Nc6 {[%clk 0:02:53.9]} 3. Bb5 {[%clk 0:02:57.7]} 3... a6 {[%clk 0:02:53.3]}
4. Ba4 {[%clk 0:02:58]} 4... Bc5 {[%clk 0:02:53.5]} 5. O-O {[%clk 0:02:57.6]}
5... Nge7 {[%clk 0:02:54.1]} 6. c3 {[%clk 0:02:56.3]} 6... Ba7 {[%clk
0:02:54.5]} 7. d4 {[%clk 0:02:56.7]} 7... Ng6 {[%clk 0:02:55.1]} 8. d5 {[%clk
0:02:52.6]} 8... Nce7 {[%clk 0:02:54.6]} 9. d6 {[%clk 0:02:53.2]} 9... cxd6
{[%clk 0:02:54.7]} 10. Qxd6 {[%clk 0:02:53.7]} 10... O-O {[%clk 0:02:54]} 11.
Bg5 {[%clk 0:02:51.8]} 11... f6 {[%clk 0:02:52]} 12. Be3 {[%clk 0:02:49.3]}
12... Bxe3 {[%clk 0:02:39.1]} 13. fxe3 {[%clk 0:02:50.2]} 13... b5 {[%clk
0:02:37.4]} 14. Bb3+ {[%clk 0:02:49.5]} 14... Kh8 {[%clk 0:02:38]} 15. Na3
{[%clk 0:02:46.9]} 15... Bb7 {[%clk 0:02:36.9]} 16. Rad1 {[%clk 0:02:29]} 16...
Bxe4 {[%clk 0:02:24]} 17. Qxd7 {[%clk 0:02:28.5]} 17... Qb6 {[%clk 0:02:24.6]}
18. Kh1 {[%clk 0:02:21]} 18... Rad8 {[%clk 0:02:14.5]} 19. Qh3 {[%clk
0:01:47.1]} 19... Rxd1 {[%clk 0:01:51.2]} 20. Rxd1 {[%clk 0:01:48]} 20... Qxe3
{[%clk 0:01:50]} 21. Re1 {[%clk 0:01:46.8]} 21... Qf4 {[%clk 0:01:49.8]} 22. Nc2
{[%clk 0:01:31.6]} 22... a5 {[%clk 0:01:22.3]} 23. Ne3 {[%clk 0:01:25.2]} 23...
Bxf3 {[%clk 0:01:17]} 24. Qxf3 {[%clk 0:01:26.1]} 24... Qxf3 {[%clk 0:01:16.7]}
25. gxf3 {[%clk 0:01:26.7]} 25... Rd8 {[%clk 0:01:12.5]} 26. Rd1 {[%clk
0:01:25.3]} 26... Rxd1+ {[%clk 0:01:11.5]} 27. Bxd1 {[%clk 0:01:26.2]} 27... Nf4
{[%clk 0:01:10.1]} 28. c4 {[%clk 0:01:25.6]} 28... b4 {[%clk 0:01:04]} 29. Bc2
{[%clk 0:01:21.9]} 29... Ne6 {[%clk 0:00:51.6]} 30. Be4 {[%clk 0:01:03.5]} 30...
g6 {[%clk 0:00:44.4]} 31. Bd5 {[%clk 0:00:57.8]} 31... Nc5 {[%clk 0:00:41.1]}
32. a3 {[%clk 0:00:46.3]} 32... bxa3 {[%clk 0:00:38]} 33. bxa3 {[%clk
0:00:47.2]} 33... f5 {[%clk 0:00:35.6]} 34. Ba8 {[%clk 0:00:43.2]} 34... Kg7
{[%clk 0:00:33.3]} 35. Kg2 {[%clk 0:00:35.1]} 35... Kf6 {[%clk 0:00:32.9]} 36.
Nd1 {[%clk 0:00:30.5]} 36... e4 {[%clk 0:00:22.2]} 37. Nc3 {[%clk 0:00:23.8]}
37... Ke5 {[%clk 0:00:20.9]} 38. fxe4 {[%clk 0:00:15.2]} 38... fxe4 {[%clk
0:00:21.8]} 39. Ne2 {[%clk 0:00:14.2]} 39... Nf5 {[%clk 0:00:18.8]} 40. Kf2
{[%clk 0:00:14.7]} 40... Nd3+ {[%clk 0:00:17.8]} 41. Kf1 {[%clk 0:00:15.1]}
41... Ne3+ {[%clk 0:00:17.5]} 42. Kg1 {[%clk 0:00:15.5]} 42... Nxc4 {[%clk
0:00:17.2]} 43. a4 {[%clk 0:00:13.9]} 43... Nd6 {[%clk 0:00:14.2]} 44. Kg2
{[%clk 0:00:09.7]} 44... Nf4+ {[%clk 0:00:13.6]} 45. Kf2 {[%clk 0:00:07.9]}
45... Nxe2 {[%clk 0:00:12.6]} 46. Kxe2 {[%clk 0:00:08.8]} 46... Kd4 {[%clk
0:00:13.2]} 47. Kd2 {[%clk 0:00:08.5]} 47... e3+ {[%clk 0:00:12.7]} 48. Ke2
{[%clk 0:00:09.4]} 48... Ne4 {[%clk 0:00:11]} 49. Ke1 {[%clk 0:00:06.9]} 49...
Nc3 {[%clk 0:00:06.8]} 50. Bc6 {[%clk 0:00:07.5]} 50... Ke5 {[%clk 0:00:05.3]}
51. Bd7 {[%clk 0:00:05.1]} 51... Kf4 {[%clk 0:00:05.1]} 52. Kf1 {[%clk
0:00:05.4]} 52... g5 {[%clk 0:00:04.4]} 53. Bc6 {[%clk 0:00:04.4]} 53... h5
{[%clk 0:00:04.4]} 54. Be8 {[%clk 0:00:04.3]} 54... h4 {[%clk 0:00:04.1]} 55.
Bd7 {[%clk 0:00:05.1]} 55... g4 {[%clk 0:00:04.6]} 56. Bc6 {[%clk 0:00:05.4]}
56... g3 {[%clk 0:00:04]} 57. hxg3+ {[%clk 0:00:03.8]} 57... Kxg3 {[%clk
0:00:04.1]} 58. Bd7 {[%clk 0:00:02.9]} 58... h3 {[%clk 0:00:04.4]} 59. Bc6
{[%clk 0:00:03.6]} 59... Kf4 {[%clk 0:00:03.6]} 60. Ke1 {[%clk 0:00:03.2]} 60...
h2 {[%clk 0:00:03.7]} 61. Kf1 {[%clk 0:00:03.8]} 61... Ne4 {[%clk 0:00:03.6]}
62. Kg2 {[%clk 0:00:03.8]} 62... e2 {[%clk 0:00:04]} 63. Bxe4 {[%clk 0:00:03.5]}
63... Kxe4 {[%clk 0:00:03.7]} 64. Kf2 {[%clk 0:00:02.5]} 64... h1=Q {[%clk
0:00:03.8]} 65. Kxe2 {[%clk 0:00:03.4]} 65... Qa1 {[%clk 0:00:04]} 66. Kd2
{[%clk 0:00:04.3]} 66... Qb2+ {[%clk 0:00:04.4]} 67. Ke1 {[%clk 0:00:04.6]}
67... Ke3 {[%clk 0:00:05]} 68. Kf1 {[%clk 0:00:05.5]} 68... Qf2# {[%clk
0:00:05.1]} 0-1

[Event "Early-Titled-Tuesday-Blitz-April-16-2024"]
[Site "Chess.com"]
[Date "2024.04.16"]
[Round "6"]
[White "DonCiao"]
[Black "esrosenberg"]
[Result "1-0"]
[WhiteElo "2080"]
[BlackElo "2376"]
[TimeControl "180+1"]
[EndTime "9:09:38 PDT"]
[Termination "DonCiao won by resignation"]

1. c4 {[%clk 0:03:00.9]} 1... e6 {[%clk 0:02:58.9]} 2. g3 {[%clk 0:03:01.1]}
2... d5 {[%clk 0:02:57.8]} 3. Bg2 {[%clk 0:03:01.2]} 3... c5 {[%clk 0:02:53.6]}
4. Nf3 {[%clk 0:02:56.9]} 4... d4 {[%clk 0:02:45.5]} 5. O-O {[%clk 0:02:55.6]}
5... Nc6 {[%clk 0:02:46.1]} 6. e3 {[%clk 0:02:55.6]} 6... e5 {[%clk 0:02:42.7]}
7. exd4 {[%clk 0:02:55.6]} 7... exd4 {[%clk 0:02:43.6]} 8. Re1+ {[%clk
0:02:54.7]} 8... Be7 {[%clk 0:02:43.5]} 9. Ne5 {[%clk 0:02:49.7]} 9... Nxe5
{[%clk 0:02:33.6]} 10. Rxe5 {[%clk 0:02:49.1]} 10... Rb8 {[%clk 0:02:22.3]} 11.
d3 {[%clk 0:02:47.3]} 11... Be6 {[%clk 0:02:20.5]} 12. Bf4 {[%clk 0:02:44.3]}
12... Bd6 {[%clk 0:02:19.5]} 13. Qa4+ {[%clk 0:02:14.9]} 13... Kf8 {[%clk
0:02:17.4]} 14. Re4 {[%clk 0:01:56.8]} 14... Nf6 {[%clk 0:02:08]} 15. Bxd6+
{[%clk 0:01:55.1]} 15... Qxd6 {[%clk 0:02:08.9]} 16. Re1 {[%clk 0:01:49.1]}
16... a6 {[%clk 0:01:59]} 17. Nd2 {[%clk 0:01:44.5]} 17... h5 {[%clk 0:01:51.4]}
18. h4 {[%clk 0:01:41.9]} 18... Rh6 {[%clk 0:01:46.6]} 19. Ne4 {[%clk
0:01:39.5]} 19... Nxe4 {[%clk 0:01:45.7]} 20. Bxe4 {[%clk 0:01:39.3]} 20... Rf6
{[%clk 0:01:40.2]} 21. a3 {[%clk 0:01:34.3]} 21... g6 {[%clk 0:01:37.8]} 22. b4
{[%clk 0:01:33.9]} 22... Kg7 {[%clk 0:01:34.5]} 23. bxc5 {[%clk 0:01:33.8]}
23... Qxc5 {[%clk 0:01:35.3]} 24. Qb4 {[%clk 0:01:30.4]} 24... Qc7 {[%clk
0:01:30.7]} 25. c5 {[%clk 0:01:27.3]} 25... Qd7 {[%clk 0:01:25.2]} 26. Rab1
{[%clk 0:01:23]} 26... Bf5 {[%clk 0:00:57.5]} 27. c6 {[%clk 0:01:15.9]} 27...
Qd6 {[%clk 0:00:41]} 28. cxb7 {[%clk 0:01:06.5]} 28... Bxe4 {[%clk 0:00:36.7]}
29. Rxe4 {[%clk 0:01:05.3]} 29... Qc6 {[%clk 0:00:24.2]} 30. Qc4 {[%clk
0:00:53]} 30... Rxb7 {[%clk 0:00:21.3]} 31. Rxb7 {[%clk 0:00:47.6]} 31... Qxb7
{[%clk 0:00:22.2]} 32. Qxd4 {[%clk 0:00:47.5]} 32... Qb1+ {[%clk 0:00:20.6]} 33.
Kh2 {[%clk 0:00:41.7]} 33... Qb6 {[%clk 0:00:18.9]} 34. Qxb6 {[%clk 0:00:35.3]}
34... Rxb6 {[%clk 0:00:19.8]} 35. Ra4 {[%clk 0:00:34.9]} 35... Kf6 {[%clk
0:00:17.2]} 36. Ra5 {[%clk 0:00:34.7]} 36... Ke7 {[%clk 0:00:14.9]} 37. Kg2
{[%clk 0:00:34.8]} 37... Rb3 {[%clk 0:00:12.5]} 38. d4 {[%clk 0:00:34.2]} 38...
Rb6 {[%clk 0:00:11.5]} 39. Kf3 {[%clk 0:00:32.7]} 39... Kd6 {[%clk 0:00:11.4]}
40. Ke4 {[%clk 0:00:32.7]} 40... Kc6 {[%clk 0:00:12]} 41. a4 {[%clk 0:00:30.3]}
41... Kb7 {[%clk 0:00:12.2]} 42. Re5 {[%clk 0:00:27.9]} 42... Rf6 {[%clk
0:00:11.1]} 43. Re7+ {[%clk 0:00:27.2]} 43... Kb6 {[%clk 0:00:11]} 44. f4 {[%clk
0:00:27.2]} 44... Ka5 {[%clk 0:00:09.4]} 45. Ke5 {[%clk 0:00:20.4]} 45... Rf5+
{[%clk 0:00:08.6]} 46. Kd6 {[%clk 0:00:18.1]} 46... Kxa4 {[%clk 0:00:09.5]} 47.
d5 {[%clk 0:00:17.5]} 47... Kb5 {[%clk 0:00:09.5]} 48. Rb7+ {[%clk 0:00:17.1]}
48... Kc4 {[%clk 0:00:09.4]} 49. Rc7+ {[%clk 0:00:14]} 49... Kd4 {[%clk
0:00:08.7]} 50. Rc5 {[%clk 0:00:13.8]} 50... Ke4 {[%clk 0:00:05.6]} 51. Kc6
{[%clk 0:00:11.7]} 51... Kd4 {[%clk 0:00:04.9]} 52. Ra5 {[%clk 0:00:09.8]} 52...
Rf6+ {[%clk 0:00:04.1]} 53. Kd7 {[%clk 0:00:09.1]} 53... Rb6 {[%clk 0:00:03.4]}
54. d6 {[%clk 0:00:08.4]} 54... Kc4 {[%clk 0:00:02.7]} 55. Ke7 {[%clk
0:00:07.5]} 55... Kb4 {[%clk 0:00:02.3]} 56. Re5 {[%clk 0:00:06.4]} 56... a5
{[%clk 0:00:01.3]} 57. d7 {[%clk 0:00:06]} 57... Rb7 {[%clk 0:00:02.2]} 58. Ke8
{[%clk 0:00:05.9]} 58... Rxd7 {[%clk 0:00:01.6]} 59. Kxd7 {[%clk 0:00:05.4]}
59... a4 {[%clk 0:00:02.5]} 60. Re1 {[%clk 0:00:04.2]} 60... a3 {[%clk
0:00:03.4]} 61. Ke7 {[%clk 0:00:04.2]} 61... a2 {[%clk 0:00:03.3]} 62. Kxf7
{[%clk 0:00:04.2]} 62... Kb3 {[%clk 0:00:04.2]} 63. Kxg6 {[%clk 0:00:03.9]}
63... Kb2 {[%clk 0:00:03.6]} 64. Kxh5 {[%clk 0:00:03.1]} 64... a1=Q {[%clk
0:00:04.5]} 65. Rxa1 {[%clk 0:00:02.9]} 65... Kxa1 {[%clk 0:00:05.4]} 66. f5
{[%clk 0:00:03.2]} 66... Kb2 {[%clk 0:00:06.3]} 67. f6 {[%clk 0:00:03.6]} 67...
Kc3 {[%clk 0:00:07.2]} 68. f7 {[%clk 0:00:04]} 68... Kd2 {[%clk 0:00:08.1]} 69.
f8=Q {[%clk 0:00:03.6]} 69... Ke2 {[%clk 0:00:09]} 70. g4 {[%clk 0:00:02.8]}
70... Ke3 {[%clk 0:00:08.9]} 71. g5 {[%clk 0:00:03]} 71... Ke4 {[%clk
0:00:09.8]} 72. g6 {[%clk 0:00:03.5]} 72... Ke5 {[%clk 0:00:10.7]} 73. g7 {[%clk
0:00:03.7]} 73... Ke6 {[%clk 0:00:11.6]} 74. g8=Q+ {[%clk 0:00:03.4]} 74... Ke5
{[%clk 0:00:12.5]} 75. Qgf7 {[%clk 0:00:02.8]} 75... Ke4 {[%clk 0:00:12.4]} 76.
Q8e8+ {[%clk 0:00:02.6]} 76... Kd4 {[%clk 0:00:12.2]} 77. Qfd7+ {[%clk
0:00:02.5]} 77... Kc5 {[%clk 0:00:13.1]} 78. Qec8+ {[%clk 0:00:02.5]} 78... Kb6
{[%clk 0:00:14]} 79. Qdb7+ {[%clk 0:00:02.3]} 1-0

[Event "Early-Titled-Tuesday-Blitz-April-16-2024"]
[Site "Chess.com"]
[Date "2024.04.16"]
[Round "6"]
[White "MomchilPetkov"]
[Black "Agibileg"]
[Result "0-1"]
[WhiteElo "2925"]
[BlackElo "2775"]
[TimeControl "180+1"]
[EndTime "9:09:46 PDT"]
[Termination "Agibileg won by checkmate"]

1. d4 {[%clk 0:03:00.9]} 1... Nf6 {[%clk 0:02:59.9]} 2. Nf3 {[%clk 0:03:01.1]}
2... g6 {[%clk 0:02:59.7]} 3. Nbd2 {[%clk 0:02:59.8]} 3... d5 {[%clk 0:02:58.7]}
4. b3 {[%clk 0:02:59.7]} 4... Bg7 {[%clk 0:02:58.8]} 5. Bb2 {[%clk 0:03:00.5]}
5... O-O {[%clk 0:02:59]} 6. e3 {[%clk 0:03:01.2]} 6... b6 {[%clk 0:02:50.8]} 7.
Be2 {[%clk 0:03:00.1]} 7... Bb7 {[%clk 0:02:51.2]} 8. h4 {[%clk 0:03:00.7]} 8...
Nbd7 {[%clk 0:02:46.8]} 9. Ne5 {[%clk 0:03:00]} 9... c5 {[%clk 0:02:43.9]} 10.
h5 {[%clk 0:02:59.6]} 10... Ne4 {[%clk 0:02:36.5]} 11. Nxe4 {[%clk 0:02:34.7]}
11... dxe4 {[%clk 0:02:36.4]} 12. hxg6 {[%clk 0:02:23.9]} 12... hxg6 {[%clk
0:02:35.9]} 13. Nxg6 {[%clk 0:02:21.6]} 13... fxg6 {[%clk 0:02:30]} 14. Bc4+
{[%clk 0:02:19.8]} 14... Rf7 {[%clk 0:02:30.3]} 15. Qg4 {[%clk 0:02:16.2]} 15...
Nf8 {[%clk 0:02:29.8]} 16. Bxf7+ {[%clk 0:02:11.7]} 16... Kxf7 {[%clk
0:02:30.7]} 17. O-O-O {[%clk 0:02:12.1]} 17... Qc8 {[%clk 0:02:25.5]} 18. Qg3
{[%clk 0:02:07.5]} 18... c4 {[%clk 0:02:12.6]} 19. Qf4+ {[%clk 0:01:57]} 19...
Kg8 {[%clk 0:02:10.8]} 20. Kb1 {[%clk 0:01:52.3]} 20... Bd5 {[%clk 0:02:01.4]}
21. Qg5 {[%clk 0:01:48.8]} 21... Qe6 {[%clk 0:01:54.8]} 22. bxc4 {[%clk
0:01:44.9]} 22... Bxc4 {[%clk 0:01:53.4]} 23. d5 {[%clk 0:01:45.5]} 23... Qf7
{[%clk 0:01:35.5]} 24. Bxg7 {[%clk 0:01:41.8]} 24... Qxg7 {[%clk 0:01:35.5]} 25.
Rd4 {[%clk 0:01:41]} 25... Rc8 {[%clk 0:01:30]} 26. Qg4 {[%clk 0:01:41.6]} 26...
Rc5 {[%clk 0:01:22.8]} 27. Qxe4 {[%clk 0:01:41.4]} 27... Rb5+ {[%clk 0:01:15.2]}
28. Kc1 {[%clk 0:01:40.2]} 28... Bxa2 {[%clk 0:01:15.3]} 29. Kd2 {[%clk
0:01:40.7]} 29... Qf6 {[%clk 0:01:13.8]} 30. f3 {[%clk 0:01:29.4]} 30... Qg5
{[%clk 0:01:13.1]} 31. f4 {[%clk 0:01:19.7]} 31... Qg3 {[%clk 0:01:03.4]} 32.
Rf1 {[%clk 0:01:20.1]} 32... Qh4 {[%clk 0:00:44.5]} 33. Qd3 {[%clk 0:00:59.6]}
33... Rc5 {[%clk 0:00:39.1]} 34. e4 {[%clk 0:00:46]} 34... Qg4 {[%clk 0:00:39]}
35. Qf3 {[%clk 0:00:33.9]} 35... Qxf3 {[%clk 0:00:36.7]} 36. Rxf3 {[%clk
0:00:34.5]} 36... Bc4 {[%clk 0:00:36.9]} 37. Rc3 {[%clk 0:00:33.6]} 37... b5
{[%clk 0:00:36.6]} 38. Ra3 {[%clk 0:00:32.9]} 38... Rc7 {[%clk 0:00:34.3]} 39.
Ra6 {[%clk 0:00:33.1]} 39... Kf7 {[%clk 0:00:33.1]} 40. Rc6 {[%clk 0:00:33.3]}
40... Rb7 {[%clk 0:00:21.9]} 41. e5 {[%clk 0:00:33.3]} 41... a5 {[%clk
0:00:22.2]} 42. g4 {[%clk 0:00:28.8]} 42... a4 {[%clk 0:00:22.3]} 43. f5 {[%clk
0:00:29.3]} 43... gxf5 {[%clk 0:00:22.4]} 44. gxf5 {[%clk 0:00:30.2]} 44... Ra7
{[%clk 0:00:21.1]} 45. Kc1 {[%clk 0:00:27.4]} 45... a3 {[%clk 0:00:13.2]} 46.
Kb1 {[%clk 0:00:27.5]} 46... a2+ {[%clk 0:00:13.7]} 47. Ka1 {[%clk 0:00:28]}
47... Ra3 {[%clk 0:00:13.8]} 48. Rc7 {[%clk 0:00:25.4]} 48... Re3 {[%clk
0:00:09.6]} 49. Rd1 {[%clk 0:00:17.4]} 49... Rxe5 {[%clk 0:00:07.1]} 50. d6
{[%clk 0:00:18.1]} 50... Kf6 {[%clk 0:00:06.9]} 51. d7 {[%clk 0:00:08.9]} 51...
Nxd7 {[%clk 0:00:06.9]} 52. Rcxd7 {[%clk 0:00:09.8]} 52... Kxf5 {[%clk
0:00:05.1]} 53. Kb2 {[%clk 0:00:09.7]} 53... Ke6 {[%clk 0:00:04.2]} 54. Ra7
{[%clk 0:00:09.5]} 54... Re2 {[%clk 0:00:04.4]} 55. Rdd7 {[%clk 0:00:08.2]}
55... Kf6 {[%clk 0:00:03.6]} 56. Rd8 {[%clk 0:00:07.8]} 56... e5 {[%clk
0:00:03.5]} 57. Rf8+ {[%clk 0:00:06.6]} 57... Ke6 {[%clk 0:00:03.8]} 58. Ra6+
{[%clk 0:00:06.9]} 58... Kd5 {[%clk 0:00:03.8]} 59. Re8 {[%clk 0:00:05.7]} 59...
Kc5 {[%clk 0:00:03]} 60. Rd8 {[%clk 0:00:03]} 60... e4 {[%clk 0:00:02.6]} 61.
Ra7 {[%clk 0:00:03.5]} 61... e3 {[%clk 0:00:02.1]} 62. Re8 {[%clk 0:00:03.8]}
62... Kb4 {[%clk 0:00:02.4]} 63. Re4 {[%clk 0:00:01.9]} 63... Re1 {[%clk
0:00:02.2]} 64. Ra3 {[%clk 0:00:01.6]} 64... Rb1# {[%clk 0:00:01.5]} 0-1